bitfinex/quotes_SOLUSD_20240718
["timestamp","ask_amount","ask_price","bid_price","bid_amount"]
[1721282473053,12.09,159.43,159.41,6.2731]
[1721282473352,12.09,159.45,159.41,6.2731]
[1721282473860,12.09,159.46,159.43,15.6806]
[1721282474061,12.09,159.46,159.43,16.93485359]
[1721282474627,28.3114,159.48,159.45,15.678]
[1721282474848,6.2692,159.51,159.46,1.25410506]
[1721282475048,213.12836743,159.5,159.46,1.25410506]
[1721282475348,213.12836743,159.5,159.46,7.52510506]
[1721282475724,213.12836743,159.5,159.47,6.2706]
[1721282475925,201.03836743,159.5,159.48,1.25392974]
[1721282476162,201.03836743,159.5,159.48,7.52412974]
[1721282476331,201.03836743,159.5,159.48,1.25392974]
[1721282476852,201.03836743,159.5,159.49,6.2699]
[1721282477076,201.03836743,159.5,159.49,51.2699]
[1721282477567,201.03836743,159.5,159.48,15.6757]
[1721282477851,201.03836743,159.5,159.48,21.946]
[1721282478155,201.03836743,159.5,159.48,15.6757]
[1721282479255,201.03836743,159.5,159.49,7.52377901]
[1721282479444,201.03836743,159.5,159.49,52.52377901]
[1721282479657,201.03836743,159.5,159.49,64.61377901]
[1721282479951,201.03836743,159.5,159.49,64.61369271]
[1721282482135,201.03836743,159.5,159.49,63.6999]
[1721282482648,201.03836743,159.5,159.49,51.2699]
[1721282483360,201.03836743,159.5,159.49,64.61368609]
[1721282483869,201.03836743,159.5,159.49,64.95368609]
[1721282484067,201.03836743,159.5,159.49,63.6999]
[1721282484245,201.03836743,159.5,159.49,64.95359659]
[1721282485238,201.03836743,159.5,159.48,15.6757]
[1721282486856,201.03836743,159.5,159.48,21.9459]
[1721282487253,201.03836743,159.5,159.49,6.2699]
[1721282487562,201.03836743,159.5,159.49,51.2699]
[1721282488148,201.03836743,159.5,159.49,73.5299]
[1721282488348,201.03836743,159.5,159.49,63.6999]
[1721282488548,201.03836743,159.5,159.49,63.3599]
[1721282489662,201.03836743,159.5,159.49,51.2699]
[1721282489966,201.03836743,159.5,159.49,45.0]
[1721282490348,201.03836743,159.5,159.48,15.6757]
[1721282490942,201.03836743,159.5,159.48,21.9459]
[1721282491870,213.12836743,159.5,159.46,6.2708]
[1721282492051,12.09,159.48,159.45,6.2715]
[1721282493552,12.09,159.48,159.46,6.2711]
[1721282494652,12.09,159.48,159.45,6.2715]
[1721282496255,201.03836743,159.5,159.44,15.6792]
[1721282496451,12.09,159.49,159.44,27.7692]
[1721282496849,12.09,159.49,159.46,6.2711]
[1721282497368,201.03836743,159.5,159.46,6.2711]
[1721282497548,12.09,159.49,159.46,6.2711]
[1721282497950,13.6576077,159.49,159.46,6.2711]
[1721282498264,13.6576077,159.49,159.44,21.9508]
[1721282498466,12.09,159.48,159.44,21.9508]
[1721282499566,12.09,159.47,159.44,21.9508]
[1721282499765,6.2704,159.48,159.44,15.6792]
[1721282500078,12.09,159.46,159.42,6.2723]
[1721282500377,12.09,159.46,159.43,6.2723]
[1721282501351,12.09,159.46,159.44,6.2719]
[1721282501551,12.09,159.45,159.42,6.2724]
[1721282502387,201.03836743,159.5,159.38,21.9597]
[1721282502388,6.2724,159.43,159.38,21.9597]
[1721282502549,12.09,159.42,159.38,15.6856]
[1721282503170,1.56833841,159.41,159.38,15.6856]
[1721282503353,13.65833841,159.41,159.38,15.6856]
[1721282503557,12.09,159.41,159.38,15.6856]
[1721282503764,13.65841383,159.4,159.38,15.6856]
[1721282504073,12.09,159.39,159.34,15.6889]
[1721282504277,12.09,159.39,159.34,21.9647]
[1721282504460,12.09,159.37,159.34,15.6889]
[1721282504657,12.09,159.37,159.34,21.9647]
[1721282505786,13.65851828,159.38,159.35,6.2754]
[1721282506075,16.0656,159.39,159.35,1.25498972]
[1721282506282,1.56851888,159.38,159.34,15.6889]
[1721282506574,12.09,159.37,159.34,15.6889]
[1721282506761,13.65851888,159.38,159.35,6.2754]
[1721282506958,13.65851888,159.38,159.34,15.6889]
[1721282507160,13.65851888,159.38,159.35,6.2751]
[1721282508168,12.09,159.37,159.35,6.2751]
[1721282508370,12.09,159.37,159.34,15.6889]
[1721282508566,1.56851888,159.38,159.34,15.6889]
[1721282508783,13.65851888,159.38,159.34,15.6889]
[1721282508957,12.09,159.37,159.31,12.9025976]
[1721282509163,12.09,159.35,159.31,0.8125976]
[1721282509358,12.09,159.35,159.31,45.8125976]
[1721282509559,12.09,159.35,159.33,6.2762]
[1721282509760,13.65887936,159.36,159.33,6.2762]
[1721282510182,12.09,159.36,159.33,6.2762]
[1721282510561,13.65893914,159.35,159.32,15.6914]
[1721282510759,12.09,159.35,159.32,15.6914]
[1721282511379,12.09,159.35,159.32,21.968]
[1721282511661,12.09,159.33,159.31,0.8125976]
[1721282511882,12.09,159.32,159.31,0.8125976]
[1721282512396,35.18002833,159.32,159.31,0.8125976]
[1721282512870,16.81342833,159.32,159.31,0.8125976]
[1721282513179,28.90342833,159.32,159.31,0.8125976]
[1721282514284,35.18002833,159.32,159.31,0.8125976]
[1721282518479,41.59262833,159.32,159.31,0.8125976]
[1721282518872,41.76262833,159.32,159.31,0.8125976]
[1721282520293,23.22602833,159.32,159.31,0.8125976]
[1721282520494,41.59262833,159.32,159.31,0.8125976]
[1721282521181,57.28422833,159.32,159.31,0.8125976]
[1721282521394,6.2791,159.26,159.2,15.7027]
[1721282521693,12.09,159.24,159.21,6.2806]
[1721282522101,12.09,159.23,159.2,15.7027]
[1721282522478,1.57008084,159.24,159.2,21.984]
[1721282522687,12.09,159.23,159.2,21.984]
[1721282523183,13.66018001,159.22,159.18,6.2818]
[1721282523385,15.4153,159.25,159.19,6.2817]
[1721282523386,12.09,159.21,159.19,6.2817]
[1721282523689,12.09,159.21,159.18,7.53837719]
[1721282523900,12.09,159.21,159.18,6.2821]
[1721282524279,7.85064995,159.23,159.18,6.2821]
[1721282524791,6.2798,159.24,159.18,6.2821]
[1721282524993,1.5703507,159.23,159.18,6.2821]
[1721282525197,1.5703507,159.23,159.17,15.7064]
[1721282525801,6.2814,159.2,159.15,0.8125976]
[1721282526001,1.57071917,159.19,159.15,0.8125976]
[1721282526291,7.85251917,159.19,159.15,0.8125976]
[1721282526487,21.2339,159.18,159.15,0.8125976]
[1721282526683,1.57092148,159.17,159.15,0.8125976]
[1721282526879,7.85342148,159.17,159.15,0.8125976]
[1721282527093,6.2829,159.16,159.15,0.8125976]
[1721282528196,1.57092148,159.17,159.15,0.8125976]
[1721282528497,6.2829,159.16,159.15,0.8125976]
[1721282528886,6.2841,159.14,159.06,15.7164]
[1721282529092,1.5713835,159.13,159.08,6.286]
[1721282530285,7.8554835,159.13,159.08,6.286]
[1721282530490,1.57127817,159.12,159.08,6.286]
[1721282530694,6.2837,159.15,159.09,6.2856]
[1721282530904,6.2837,159.15,159.1,6.2851]
[1721282530905,1.57112692,159.14,159.1,6.2851]
[1721282531191,1.57112692,159.14,159.09,15.7141]
[1721282531577,1.57112692,159.14,159.09,21.9994]
[1721282531778,1.57112692,159.14,159.09,15.7141]
[1721282533172,1.57112692,159.14,159.09,21.9996]
[1721282533391,1.57112692,159.14,159.1,6.2852]
[1721282533912,1.57111598,159.15,159.1,6.2852]
[1721282534117,1.57111598,159.17,159.09,10.17]
[1721282534279,15.7021,159.22,159.09,10.17]
[1721282534280,21.8985,159.22,159.16,6.2829]
[1721282534612,1.57049712,159.21,159.17,6.2825]
[1721282534786,21.8985,159.22,159.18,7.53842823]
[1721282534973,21.8985,159.22,159.15,15.7082]
[1721282534974,1.57027161,159.21,159.15,15.7082]
[1721282535177,1.57039692,159.2,159.16,45.0]
[1721282535374,7.85147994,159.21,159.16,51.2827]
[1721282535605,21.8985,159.22,159.16,45.0]
[1721282535937,1.5702786,159.21,159.17,6.2822]
[1721282536097,1.57034036,159.2,159.15,15.7082]
[1721282536306,7.85174036,159.2,159.15,21.9915]
[1721282536999,7.85174036,159.2,159.15,15.7082]
[1721282537212,1.57034036,159.2,159.13,6.2841]
[1721282537745,6.2823,159.18,159.12,6.2845]
[1721282537902,6.2823,159.18,159.12,7.54119691]
[1721282538411,6.2817,159.2,159.15,6.2833]
[1721282538609,1.57068309,159.19,159.15,6.2833]
[1721282538808,1.57068309,159.19,159.11,15.7115]
[1721282539008,7.85248309,159.19,159.14,6.2837]
[1721282539328,6.2822,159.18,159.13,6.2841]
[1721282539497,6.2826,159.17,159.12,6.2845]
[1721282539817,7.85377061,159.16,159.11,21.9964]
[1721282540124,6.2834,159.15,159.09,6.2853]
[1721282540310,1.57118679,159.14,159.09,6.2853]
[1721282540803,7.85498679,159.14,159.09,6.2856]
[1721282541224,1.57118679,159.14,159.1,6.2853]
[1721282541399,1.57118679,159.14,159.11,6.2849]
[1721282542928,6.1047,159.15,159.11,7.54184787]
[1721282543097,6.1047,159.15,159.11,6.2849]
[1721282543500,6.1047,159.15,159.1,15.7133]
[1721282543702,6.1047,159.15,159.11,1.25686976]
[1721282544331,6.1047,159.15,159.11,7.54176976]
[1721282544636,6.1047,159.15,159.11,1.25686976]
[1721282545027,12.3882,159.15,159.11,1.25686976]
[1721282545228,6.2828,159.17,159.11,1.25686976]
[1721282545427,8.06500003,159.19,159.13,6.2841]
[1721282545806,6.2824,159.18,159.12,6.2845]
[1721282546006,1.57080098,159.17,159.12,6.2845]
[1721282546209,1.57080098,159.17,159.13,7.54074078]
[1721282546516,1.57080098,159.18,159.14,6.2834]
[1721282546711,1.57080098,159.18,159.13,7.54074078]
[1721282546924,14.34663206,159.19,159.14,45.0]
[1721282547168,12.7759,159.19,159.14,45.0]
[1721282547424,12.7759,159.19,159.15,1.25651338]
[1721282547619,1.57064153,159.18,159.14,1.25651322]
[1721282548423,1.57064153,159.18,159.13,51.2841]
[1721282548625,7.85294153,159.18,159.13,45.0]
[1721282548828,7.85302232,159.18,159.13,45.0]
[1721282549041,6.494,159.19,159.14,1.25657786]
[1721282549333,14.34648881,159.19,159.15,1.25655105]
[1721282551714,1.5706628,159.21,159.15,1.2564522]
[1721282551922,7.8517628,159.21,159.16,6.2826]
[1721282552435,7.8517628,159.21,159.17,1.25639902]
[1721282553519,7.8517628,159.21,159.16,6.2826]
[1721282554132,7.8517628,159.21,159.17,1.25634017]
[1721282554728,6.6151,159.23,159.18,1.25634028]
[1721282554922,6.6151,159.23,159.19,6.2817]
[1721282555334,6.6151,159.23,159.2,1.25613609]
[1721282555919,6.6151,159.23,159.19,6.2817]
[1721282556825,6.6151,159.23,159.2,1.25613547]
[1721282557041,6.6151,159.23,159.21,1.25613038]
[1721282557425,6.6151,159.23,159.21,0.75613038]
[1721282557936,6.6151,159.23,159.2,0.85469421]
[1721282558418,6.6151,159.23,159.18,51.2821]
[1721282559332,6.6151,159.23,159.19,0.85477414]
[1721282559525,6.6151,159.23,159.18,51.2821]
[1721282560523,8.18522096,159.23,159.18,45.0]
[1721282560728,8.18522096,159.23,159.17,21.9889]
[1721282561653,32.46522096,159.23,159.13,21.9936]
[1721282561950,32.46522096,159.23,159.14,0.85574908]
[1721282562203,32.46522096,159.23,159.15,0.85592608]
[1721282562439,6.2814,159.2,159.15,7.13912608]
[1721282562826,1.57057073,159.19,159.15,6.2832]
[1721282563527,7.85257073,159.19,159.13,21.9935]
[1721282563734,1.57064601,159.18,159.14,51.2836]
[1721282563932,1.57064601,159.18,159.14,6.2836]
[1721282564346,1.570727,159.17,159.13,21.9938]
[1721282567970,1.570727,159.17,159.13,15.7097]
[1721282568465,12.7095,159.16,159.1,0.85669492]
[1721282568667,1.57111195,159.15,159.09,15.7142]
[1721282568838,1.57118275,159.14,159.1,6.285]
[1721282571161,1.57118275,159.14,159.09,15.7142]
[1721282571162,7.85498275,159.14,159.09,15.7142]
[1721282571366,6.4262,159.16,159.1,6.2853]
[1721282571367,1.5712748,159.13,159.1,6.2853]
[1721282572071,1.57126989,159.14,159.11,6.2849]
[1721282573154,1.57118037,159.15,159.11,6.2849]
[1721282573364,1.57117966,159.14,159.11,6.2849]
[1721282573853,1.57117966,159.14,159.1,6.2853]
[1721282574052,1.57117966,159.14,159.12,6.2844]
[1721282574258,7.85457238,159.15,159.09,15.7142]
[1721282574741,1.5711836,159.14,159.1,6.2853]
[1721282574949,7.8548836,159.14,159.09,15.7142]
[1721282575145,7.8548836,159.14,159.09,21.9999]
[1721282577962,1.5711836,159.14,159.07,6.2862]
[1721282578167,6.2846,159.12,159.07,6.2862]
[1721282578349,1.57139192,159.11,159.05,15.7175]
[1721282578548,1.57139192,159.15,159.08,15.715]
[1721282578758,7.85518822,159.14,159.08,22.0008]
[1721282580268,12.16,159.11,159.08,22.0008]
[1721282582187,1.5713867,159.1,159.08,15.715]
[1721282582780,12.16,159.11,159.08,22.001]
[1721282583266,13.73138982,159.1,159.08,22.001]
[1721282583464,12.16,159.11,159.09,6.2856]
[1721282584062,16.68637725,159.12,159.09,6.2856]
[1721282584272,12.16,159.11,159.09,6.2856]
[1721282584461,12.16,159.11,159.08,22.001]
[1721282584658,13.73133851,159.1,159.06,6.2868]
[1721282584881,13.73133851,159.1,159.06,5.7598]
[1721282585666,1.57156989,159.09,159.06,5.7598]
[1721282586071,13.73156989,159.09,159.06,5.7598]
[1721282586271,12.16,159.09,159.06,5.7598]
[1721282587067,12.16,159.09,159.07,6.2864]
[1721282587276,12.16,159.1,159.08,6.2861]
[1721282589160,12.16,159.1,159.07,6.2865]
[1721282589379,1.57151487,159.09,159.07,6.2865]
[1721282589987,12.16,159.1,159.07,6.2865]
[1721282590562,1.57149282,159.11,159.07,6.2865]
[1721282590763,13.73148824,159.1,159.07,6.2865]
[1721282591185,1.57149037,159.11,159.09,6.2857]
[1721282591384,15.1149,159.12,159.08,15.7151]
[1721282591684,27.2749,159.12,159.08,16.57262832]
[1721282591884,27.2749,159.12,159.09,6.2854]
[1721282592272,15.1149,159.12,159.09,6.2854]
[1721282592574,12.16,159.13,159.11,6.2848]
[1721282594682,12.16,159.13,159.1,6.2853]
[1721282595082,1.57110536,159.15,159.11,7.14186946]
[1721282595287,12.16,159.13,159.11,6.2848]
[1721282595484,1.57110536,159.15,159.13,6.2839]
[1721282595684,22.0265,159.16,159.14,6.2837]
[1721282595872,34.1865,159.16,159.13,21.9936]
[1721282596272,6.2818,159.19,159.14,7.14003693]
[1721282596474,12.16,159.17,159.14,7.14003693]
[1721282596870,12.16,159.17,159.13,15.7095]
[1721282597194,13.730761,159.17,159.13,15.7095]
[1721282597372,12.16,159.17,159.13,15.7095]
[1721282597571,12.16,159.17,159.13,21.9935]
[1721282597767,12.16,159.16,159.13,15.7095]
[1721282597973,13.73088335,159.15,159.11,6.2846]
[1721282598173,12.16,159.15,159.11,6.2846]
[1721282598387,12.16,159.13,159.1,21.9986]
[1721282599365,12.16,159.13,159.11,6.2849]
[1721282599569,12.16,159.14,159.11,6.2849]
[1721282600371,12.16,159.14,159.1,15.7133]
[1721282600572,12.16,159.13,159.1,15.7133]
[1721282600773,12.16,159.13,159.1,21.9983]
[1721282601073,13.73111912,159.14,159.11,6.2849]
[1721282601273,1.57109376,159.15,159.11,7.14200979]
[1721282601596,13.73109376,159.15,159.11,6.2849]
[1721282602081,13.73109376,159.15,159.11,7.14197005]
[1721282602275,13.73107813,159.14,159.11,6.2849]
[1721282602469,12.16,159.13,159.1,21.9985]
[1721282602868,12.16,159.11,159.06,15.7165]
[1721282603095,13.73149251,159.1,159.06,15.7165]
[1721282603483,12.16,159.1,159.06,15.7165]
[1721282603978,12.16,159.1,159.07,6.2864]
[1721282604184,1.57149274,159.17,159.09,12.16]
[1721282604384,1.57149274,159.17,159.13,6.2841]
[1721282604385,12.16,159.16,159.13,6.2841]
[1721282606892,13.73144923,159.1,159.07,15.7155]
[1721282607096,12.16,159.09,159.07,15.7155]
[1721282607273,13.73144923,159.1,159.07,22.002]
[1721282607978,1.34193106,159.09,159.07,22.002]
[1721282608178,13.50193106,159.09,159.04,0.85828556]
[1721282608379,12.16,159.07,159.04,6.2876]
[1721282608581,12.16,159.08,159.04,6.2876]
[1721282608802,1.57180015,159.07,159.04,6.2876]
[1721282609182,1.57180015,159.07,159.03,22.0075]
[1721282609380,12.16,159.07,159.03,15.7195]
[1721282609578,12.16,159.08,159.03,15.7195]
[1721282609779,1.57180899,159.07,159.03,15.7195]
[1721282609994,12.16,159.08,159.04,0.85882635]
[1721282610378,12.16,159.08,159.05,6.2873]
[1721282611195,1.57177184,159.07,159.05,6.2873]
[1721282611786,1.57177184,159.07,159.04,6.2876]
[1721282612185,1.57165314,159.11,159.06,22.0037]
[1721282612402,13.73152547,159.1,159.06,22.0037]
[1721282612602,12.16,159.1,159.06,22.0037]
[1721282612779,12.16,159.1,159.06,22.86172371]
[1721282612974,12.16,159.1,159.07,6.2864]
[1721282613600,13.73151635,159.11,159.07,6.2864]
[1721282614405,1.57145638,159.1,159.06,16.5752907]
[1721282614602,13.73145638,159.1,159.06,15.7172]
[1721282615102,13.73145638,159.1,159.06,22.86211447]
[1721282615278,13.73145638,159.1,159.06,22.0039]
[1721282615479,13.73145638,159.1,159.06,15.7172]
[1721282615692,12.16,159.09,159.06,15.7172]
[1721282616002,1.57164067,159.08,159.06,15.7172]
[1721282616304,1.57164067,159.08,159.05,6.2872]
[1721282616598,13.73164067,159.08,159.05,6.2872]
[1721282616810,1.57172314,159.11,159.06,6.2868]
[1721282616988,12.16,159.09,159.06,6.2868]
[1721282617302,13.73163993,159.1,159.06,6.2868]
[1721282617504,13.73163993,159.1,159.05,0.85824224]
[1721282617683,12.16,159.09,159.05,0.85824224]
[1721282617883,12.16,159.09,159.04,45.85841913]
[1721282618084,12.16,159.09,159.05,0.85841319]
[1721282618305,13.73163993,159.1,159.05,0.85841319]
[1721282618487,7.85653911,159.11,159.06,6.2865]
[1721282618700,13.73153025,159.1,159.06,6.2865]
[1721282619003,1.57153025,159.1,159.08,6.2859]
[1721282619419,1.57153025,159.1,159.07,22.0024]
[1721282619584,13.73152047,159.11,159.08,6.2861]
[1721282619792,1.57152047,159.11,159.09,6.2855]
[1721282619979,1.57152047,159.11,159.07,16.5741339]
[1721282620181,13.73152047,159.11,159.07,16.5741339]
[1721282620593,1.57152047,159.11,159.07,16.5741339]
[1721282621195,13.73152047,159.11,159.07,16.5741339]
[1721282622107,13.73152047,159.11,159.07,22.8605339]
[1721282622408,13.73152047,159.11,159.07,22.0024]
[1721282622809,13.73152047,159.11,159.07,22.86037634]
[1721282623017,12.16,159.1,159.07,22.0024]
[1721282623316,1.57152945,159.09,159.07,15.716]
[1721282623505,13.73152945,159.09,159.07,15.716]
[1721282623800,1.57152907,159.08,159.07,15.716]
[1721282624009,1.57152907,159.08,159.04,57.16]
[1721282624010,1.57152907,159.08,159.05,6.2873]
[1721282624898,1.57152907,159.08,159.06,6.2868]
[1721282625306,13.73152907,159.08,159.06,6.2868]
[1721282625509,1.57177471,159.07,159.04,22.0068]
[1721282625708,13.73177471,159.07,159.04,22.0068]
[1721282626215,13.73177471,159.07,159.05,6.2873]
[1721282626386,12.16,159.07,159.05,6.2873]
[1721282626592,1.57179509,159.06,159.04,15.7192]
[1721282626791,13.73179509,159.06,159.04,15.7192]
[1721282626990,12.16,159.06,159.04,15.7192]
[1721282627208,1.57189804,159.05,159.04,15.7192]
[1721282627410,12.16,159.06,159.04,15.7192]
[1721282627715,1.57189794,159.05,159.04,15.7192]
[1721282627893,12.16,159.06,159.04,15.7192]
[1721282628512,12.16,159.06,159.04,22.0068]
[1721282628713,1.57189513,159.05,159.04,22.0068]
[1721282629743,1.57189513,159.05,159.01,15.722]
[1721282630696,1.57189513,159.05,159.03,6.2877]
[1721282632216,1.57189513,159.05,159.02,6.2884]
[1721282632434,1.57204405,159.04,159.03,6.2881]
[1721282632724,1.5720301,159.05,159.03,6.2881]
[1721282634217,13.73202977,159.06,159.03,6.2881]
[1721282634730,1.57202977,159.06,159.04,6.2877]
[1721282635033,12.16,159.07,159.04,6.2877]
[1721282635229,13.73188661,159.07,159.04,6.2877]
[1721282635424,64.0886,159.12,159.05,6.2871]
[1721282635425,13.73187852,159.08,159.05,6.2871]
[1721282635627,12.16,159.09,159.05,6.2871]
[1721282635824,13.73167983,159.09,159.05,6.2871]
[1721282636542,12.16,159.08,159.05,6.2871]
[1721282636915,12.16,159.08,159.04,6.2876]
[1721282637310,1.57173772,159.07,159.04,6.2876]
[1721282637509,1.57176074,159.11,159.05,0.85871055]
[1721282637707,1.57163457,159.1,159.06,6.2866]
[1721282637931,1.571647,159.11,159.07,6.2863]
[1721282638247,1.5714433,159.1,159.07,6.2863]
[1721282638913,12.16,159.1,159.08,6.2861]
[1721282639317,13.73144423,159.11,159.08,6.2861]
[1721282639517,13.73144423,159.11,159.07,6.2864]
[1721282640313,12.16,159.11,159.07,6.2864]
[1721282640533,6.5527,159.18,159.15,6.2833]
[1721282640714,16.1142,159.2,159.17,6.2825]
[1721282640919,13.09878648,159.22,159.18,0.85567798]
[1721282641126,6.54608648,159.22,159.19,12.16]
[1721282641342,12.16,159.25,159.21,6.2806]
[1721282641511,12.16,159.25,159.2,18.4413]
[1721282641512,20.00944932,159.25,159.2,18.4413]
[1721282641713,12.16,159.24,159.19,12.16]
[1721282641917,13.73014261,159.23,159.18,34.1471]
[1721282642353,1.57014261,159.23,159.18,21.9871]
[1721282643424,6.2807,159.22,159.16,6.2828]
[1721282643640,1.57041084,159.21,159.15,6.2833]
[1721282643842,1.57041084,159.21,159.1,15.713]
[1721282643843,8.03143111,159.2,159.1,15.713]
[1721282644143,0.17,159.19,159.1,15.713]
[1721282644449,6.2831,159.16,159.1,15.713]
[1721282644640,1.57108106,159.15,159.1,15.713]
[1721282644946,1.57112325,159.14,159.1,15.713]
[1721282645252,1.57112325,159.14,159.1,21.9983]
[1721282645543,1.57112325,159.14,159.1,15.713]
[1721282645748,1.57112325,159.14,159.08,6.2857]
[1721282645922,1.57112325,159.14,159.06,15.7165]
[1721282646123,1.57112325,159.14,159.1,6.2852]
[1721282646322,1.57125424,159.13,159.1,6.2852]
[1721282646542,1.57125424,159.15,159.1,6.2852]
[1721282647127,1.57125424,159.15,159.09,21.9998]
[1721282647329,1.57130416,159.14,159.05,15.7177]
[1721282647527,6.2846,159.12,159.07,6.2864]
[1721282647727,1.57144203,159.11,159.07,6.2864]
[1721282648746,6.2856,159.1,159.05,15.7177]
[1721282648925,1.5714401,159.1,159.01,16.3854]
[1721282649126,6.2849,159.11,159.05,6.2869]
[1721282649336,7.85684273,159.1,159.05,6.2869]
[1721282649538,7.85684273,159.1,159.04,22.0069]
[1721282650346,7.85742883,159.09,159.04,15.7192]
[1721282651234,1.57183868,159.08,159.04,15.7192]
[1721282651440,1.57183708,159.07,159.04,15.7192]
[1721282652342,1.57183152,159.08,159.04,15.7192]
[1721282652647,1.57181471,159.07,159.04,15.7192]
[1721282653542,6.2857,159.09,159.04,15.7192]
[1721282653543,1.57181364,159.08,159.04,15.7192]
[1721282653750,1.57181301,159.07,159.04,15.7192]
[1721282654650,1.57181301,159.07,159.03,6.2881]
[1721282654952,1.57192166,159.06,159.03,6.2881]
[1721282655150,1.57192166,159.06,159.0,16.5347976]
[1721282655331,13.97482166,159.06,159.0,22.8236976]
[1721282655538,13.97472166,159.06,159.0,22.8236976]
[1721282657842,13.97472166,159.06,159.01,6.2888]
[1721282660055,7.68782166,159.06,159.01,6.2888]
[1721282660242,13.97472166,159.06,159.01,6.2888]
[1721282660648,6.2873,159.05,159.0,22.8240976]
[1721282660950,1.57213043,159.04,159.0,22.8240976]
[1721282663444,1.57212791,159.05,159.01,6.2886]
[1721282665541,1.57212791,159.05,159.0,34.9839976]
[1721282667067,1.57205014,159.04,159.0,16.5347976]
[1721282667273,18.4485,159.02,159.0,0.8125976]
[1721282667463,7.86112924,159.01,159.0,0.8125976]
[1721282667760,6.2893,159.0,158.92,15.7304]
[1721282667950,12.16,158.98,158.94,6.2916]
[1721282668355,13.73263703,158.98,158.94,6.2916]
[1721282668547,12.16,158.98,158.94,6.2916]
[1721282668746,1.57263455,158.99,158.94,6.2916]
[1721282668946,12.16,158.98,158.94,6.2916]
[1721282669366,13.73263741,158.98,158.94,6.2916]
[1721282670466,7.86273741,158.98,158.92,15.7304]
[1721282670670,1.5727966,158.97,158.92,15.7304]
[1721282671547,1.57279373,158.98,158.92,15.7304]
[1721282673064,1.57279373,158.98,158.94,6.2915]
[1721282673260,1.57268761,158.99,158.95,6.2912]
[1721282673462,1.57271169,158.98,158.95,6.2912]
[1721282673660,1.57271169,158.98,158.93,6.2916]
[1721282673961,1.57271169,158.98,158.94,6.2915]
[1721282674866,1.57271169,158.98,158.92,15.7304]
[1721282674867,1.57271169,158.98,158.93,6.292]
[1721282675068,7.86291169,158.98,158.93,6.292]
[1721282675747,6.2906,158.97,158.92,15.7304]
[1721282675951,1.57301966,158.96,158.92,22.0227]
[1721282676154,1.57298909,158.96,158.93,6.292]
[1721282676356,1.57298909,158.96,158.94,6.2915]
[1721282676554,6.2897,158.99,158.94,6.2915]
[1721282676555,1.57295458,158.98,158.94,6.2915]
[1721282677054,1.57295458,158.98,158.93,6.292]
[1721282677368,1.57295458,158.98,158.94,6.2915]
[1721282679753,1.57279377,158.99,158.95,6.2912]
[1721282680268,1.57262674,158.98,158.93,6.2917]
[1721282682957,6.2905,158.97,158.92,15.7304]
[1721282683173,7.86345059,158.97,158.92,22.0225]
[1721282683476,6.2901,158.98,158.93,6.292]
[1721282684562,1.57287361,158.97,158.93,6.292]
[1721282685873,15.8842,159.01,159.0,6.2893]
[1721282686078,1.57215694,159.04,159.01,6.2889]
[1721282686376,6.3985,159.05,159.02,6.2883]
[1721282686578,6.3985,159.05,159.03,6.288]
[1721282687083,6.3985,159.05,159.01,6.2886]
[1721282687260,6.3985,159.05,159.0,6.2892]
[1721282687769,6.3985,159.05,159.02,6.2885]
[1721282688069,6.3985,159.05,159.03,6.288]
[1721282688270,16.0525,159.06,159.03,6.288]
[1721282691263,16.0525,159.06,159.02,22.0095]
[1721282692073,17.32045376,159.11,159.04,15.7183]
[1721282692384,17.32008561,159.11,159.05,45.0]
[1721282692569,15.7486,159.11,159.05,45.0]
[1721282692880,17.31997434,159.11,159.05,45.0]
[1721282693083,15.7486,159.11,159.05,45.0]
[1721282693267,15.7486,159.11,159.06,15.7164]
[1721282693573,6.5519,159.12,159.09,15.714]
[1721282693758,22.9446,159.15,159.09,15.714]
[1721282693960,16.6611,159.15,159.11,6.2849]